Cogmind - Beta 10.2 @@@ ROGUE MODE // 2021.03.14 @ 17:37:24 Player: ChromeKnight Result: Self-destructed Performance ------------- Evolutions (2) 1000 Regions Visited (5) 1000 Robots Destroyed (32) 160 Value Destroyed (640) 640 Prototype IDs (23) 460 Alien Tech Used (0) 0 Bonus (300) 300 TOTAL SCORE: 3560 Bonus ------- Aligned with FarCom 300 Cogmind --------- Core Integrity 537/550 Matter 300/300 Energy 275/275 System Corruption 0% Temperature Cool (0) Movement Walking (120) Location -8/Materials Parts ------- > --- POWER (1) -------- Deuterium Engine > --- PROPULSION (4) --- Aluminum Leg Aluminum Leg Improved Aluminum Leg Carbon-fiber Leg > --- UTILITY (4) ------ Small Storage Unit Targeting Computer Heavy Armor Plating > --- WEAPON (2) ------- AWS/Thermal > --- INVENTORY (6) ---- Advanced Weight Redist. System System Shield Sensor Drone Bay Datajack Datajack Datajack Peak State ------------ > --- POWER ------------ Deuterium Engine > --- PROPULSION ------- Aluminum Leg Aluminum Leg Improved Aluminum Leg Carbon-fiber Leg > --- UTILITY ---------- Small Storage Unit Targeting Computer Heavy Armor Plating > --- WEAPON ----------- AWS/Thermal > --- INVENTORY -------- Advanced Weight Redist. System System Shield Sensor Drone Bay Datajack Datajack Datajack [Rating: 35] Favorites ----------- Power Deuterium Engine Engine Deuterium Engine Power Core Nuclear Core Propulsion Aluminum Leg Leg Aluminum Leg Utility Small Storage Unit Storage Small Storage Unit Processor Targeting Computer Protection Heavy Armor Plating Weapon Light Assault Rifle Energy Gun AWS/Thermal Ballistic Gun Light Assault Rifle Ballistic Cannon Light Cannon Special Melee Weapon Datajack Build | -11 -10 -10 -10 -9 -8 ------- Run | Scr Mat Min Exi Min Mat Slots Evolved 4 | . . . . . 4 Power . | . . . . . . Propulsion 2 | . . . . . 2 Utility 2 | . . . . . 2 Weapon . | . . . . . . Parts Attached 31 | 6 16 5 1 . 3 Power 4 | 1 1 2 . . . Engine 3 | 1 1 1 . . . Core 1 | . . 1 . . . Reactor . | . . . . . . Propulsion 10 | 2 5 1 . . 2 Treads . | . . . . . . Leg 10 | 2 5 1 . . 2 Wheel . | . . . . . . Hover . | . . . . . . Flight . | . . . . . . Utility 4 | 1 1 1 . . 1 Device . | . . . . . . Storage 1 | 1 . . . . . Processor 1 | . . 1 . . . Hackware . | . . . . . . Protection 2 | . 1 . . . 1 Artifact . | . . . . . . Weapon 13 | 2 9 1 1 . . Energy Gun 2 | . . 1 1 . . Energy Cannon . | . . . . . . Ballistic Gun 7 | 2 5 . . . . Ballistic Cannon 2 | . 2 . . . . Launcher . | . . . . . . Special Weapon . | . . . . . . Impact Weapon . | . . . . . . Slashing Weapon . | . . . . . . Piercing Weapon . | . . . . . . Special Melee Weapon 2 | . 2 . . . . Unidentified Prototypes . | . . . . . . Parts Lost 2 | . 2 . . . . Power 1 | . 1 . . . . Propulsion . | . . . . . . Utility 1 | . 1 . . . . Weapon . | . . . . . . Highest Loss Streak 2 | . 2 . . . . Average Slot Usage (%) 84 | . 88 95 92 85 72 Engine 12 | . 13 13 14 14 9 Leg 27 | . 27 28 28 28 27 Storage 12 | . 14 14 14 14 9 Processor 7 | . . 9 14 14 9 Protection 3 | . 3 . . . 8 Energy Gun 7 | . . 10 14 14 9 Ballistic Gun 9 | . 20 17 7 . . Ballistic Cannon 2 | . 6 . . . . Naked Turns . | . . . . . . Heaviest Build 36 | 10 16 17 21 21 36 Greatest Support 48 | 20 20 25 25 25 48 Greatest Overweight (x) 1 | 1 1 . . . 1 Average Overweight (x) . | . . . . . . Largest Inventory Capacity 6 | 6 6 6 6 6 6 Average Capacity 5 | 5 6 6 6 6 6 Most Carried 6 | 2 6 6 6 6 6 Average Carried 5 | 1 4 4 5 5 5 Final Capacity 6 | 6 6 6 6 6 6 Final Carried 6 | 2 4 5 6 6 6 Class Distribution -------------------- 100% | Mutant Dominant Class ---------------- Mutant | -10/Materials Mutant | -10/Mines Mutant | -10/Exiles Mutant | -9/Mines Mutant | -8/Materials Resources | -11 -10 -10 -10 -9 -8 ----------- Run | Scr Mat Min Exi Min Mat Matter Collected 698 | 257 219 . . 48 174 Remotely . | . . . . . . Salvage Created 826 | . 256 . . 48 522 Parts 75 | . 26 . . 4 45 Haulers Intercepted . | . . . . . . Recyclers Shooed 1 | . 1 . . . . Parts Field Recycled . | . . . . . . Retrieved Matter . | . . . . . . Parts Self-Destructed . | . . . . . . Prevented . | . . . . . . Kills | -11 -10 -10 -10 -9 -8 ------- Run | Scr Mat Min Exi Min Mat Combat Hostiles Destroyed 27 | . 10 . . 3 14 Guns 23 | . 6 . . 3 14 Cannons 4 | . 4 . . . . Classes Destroyed 6 | . 4 . . . 2 Tunneler 1 | . 1 . . . . Operator 1 | . 1 . . . . Watcher 3 | . . . . . 3 Swarmer 19 | . 8 . . 3 8 Grunt 4 | . 2 . . . 2 Sentry 4 | . . . . . 4 Best Kill Streak 6 | . 4 . . 3 6 Combat Bots Only 5 | . 4 . . 3 5 Max Kills in Single Turn 2 | . 2 . . 1 1 Gunslinging . | . . . . . . Exploded . | . . . . . . Melee . | . . . . . . Uniques/NPCs Destroyed . | . . . . . . Combat | -11 -10 -10 -10 -9 -8 -------- Run | Scr Mat Min Exi Min Mat Damage Taken 979 | . 754 25 . 45 155 Core 157 | . 109 25 . 10 13 Absorbed by Shields . | . . . . . . Core Remaining (%) 71 | 100 . . . 42 . Volleys Fired 31 | . 31 . . . . Largest 2 | . 2 . . . . Hottest 70 | . 70 . . . . Shots Fired 114 | . 62 . . 9 43 Gun 80 | . 28 . . 9 43 Cannon 34 | . 34 . . . . Launcher . | . . . . . . Special . | . . . . . . Kinetic 62 | . 62 . . . . Thermal 52 | . . . . 9 43 Explosive . | . . . . . . Electromagnetic . | . . . . . . Robot Hit Streak 14 | . 6 . . 3 14 Robot Miss Streak 6 | . 6 . . 2 3 Penetration Max . | . . . . . . Secondary Targets 1 | . 1 . . . . Max Gunslinging Chain 1 | . 1 . . . . Autonomous 53 | . . . . 9 44 Shots Hit Robots 67 | . 28 . . 6 33 Core Hits 34 | . 12 . . 3 19 Critical Hits 1 | . 1 . . . . Critical Kills . | . . . . . . Critical Parts Destroyed 1 | . 1 . . . . Melee Attacks . | . . . . . . Impact . | . . . . . . Slashing . | . . . . . . Piercing . | . . . . . . Sneak Attacks . | . . . . . . Combat Hostiles . | . . . . . . Follow-up Attacks . | . . . . . . Damage Inflicted 1466 | . 432 . . 171 863 Guns 1202 | . 168 . . 171 863 Cannons 264 | . 264 . . . . Explosions . | . . . . . . Melee . | . . . . . . Ramming . | . . . . . . Kinetic 432 | . 432 . . . . Thermal 1034 | . . . . 171 863 Explosive . | . . . . . . Electromagnetic . | . . . . . . Impact . | . . . . . . Slashing . | . . . . . . Piercing . | . . . . . . Highest Corruption 3 | . 2 3 3 3 . Average Corruption 2 | . 2 2 3 3 . Corruption Purged . | . . . . . . Effects 25 | . 8 4 4 9 . Message Errors 8 | . 1 1 1 5 . Matter Fused 1 | . . . . 1 . Heat Flow Errors 3 | . . 2 . 1 . Energy Discharges 6 | . 2 1 1 2 . Data Loss (minor) 3 | . 1 . 2 . . Targeting Errors 4 | . 4 . . . . Overload Shots . | . . . . . . Overflow Damage 2 | . 2 . . . . Projectiles 2 | . 2 . . . . Explosions . | . . . . . . Melee . | . . . . . . Knockbacks 6 | . 6 . . . . Impact . | . . . . . . Kinetic 5 | . 5 . . . . Secondary 1 | . 1 . . . . Self-Inflicted Damage . | . . . . . . Shots . | . . . . . . Rammed . | . . . . . . Targets Rammed . | . . . . . . Kicked . | . . . . . . Crushed . | . . . . . . Highest Temperature 261 | . 205 261 . 253 . Average Temperature 123 | . 116 136 . 130 . Received Heat Transfer 174 | . 138 . . . 36 Effects 1 | . 1 . . . . Energy Bleed 1 | . 1 . . . . Siege Activations . | . . . . . . Robots Corrupted . | . . . . . . Combat Hostiles . | . . . . . . Parts Fried . | . . . . . . Impact Corruptions . | . . . . . . Robots Melted . | . . . . . . Combat Hostiles . | . . . . . . Parts Melted 1 | . . . . . 1 Heat Transferred 1332 | . . . . 222 1110 Parts Sabotaged . | . . . . . . Parts Stolen . | . . . . . . Parts Stripped . | . . . . . . Power Chain Reactions . | . . . . . . Missiles Intercepted . | . . . . . . Alert | -11 -10 -10 -10 -9 -8 ------- Run | Scr Mat Min Exi Min Mat Peak Influence 340 | . 212 74 . 70 340 Initial 74 | . . 74 . . 27 Average 100 | . 94 74 . 67 144 Maximum Alert Level 1 | . 1 . . . 1 Low Security (%) 86 | 100 86 100 . 100 75 Level 1 13 | . 13 . . . 24 Level 2 . | . . . . . . Level 3 . | . . . . . . Level 4 . | . . . . . . Level 5 . | . . . . . . High Security . | . . . . . . Max Security . | . . . . . . Squads Dispatched 2 | . 2 . . . . Investigation 1 | . 1 . . . . Extermination . | . . . . . . Reinforcement 1 | . 1 . . . . Assault . | . . . . . . Garrison . | . . . . . . Intercept . | . . . . . . Construction Impeded . | . . . . . . Haulers Reinforced . | . . . . . . Stealth | -11 -10 -10 -10 -9 -8 --------- Run | Scr Mat Min Exi Min Mat Distress Signals 3 | . 1 . . 1 1 Communications Jammed . | . . . . . . Distress Signals . | . . . . . . Times Spotted 53 | . 27 . . 6 20 Peak Tracking Total 6 | . 6 . . 6 5 Tactical Retreats 6 | . 4 . . 1 1 Traps | -11 -10 -10 -10 -9 -8 ------- Run | Scr Mat Min Exi Min Mat Traps Triggered 3 | . 2 1 . . . Indirectly . | . . . . . . Trap Hack Attempts . | . . . . . . Triggered . | . . . . . . Disarmed . | . . . . . . Reprogrammed . | . . . . . . Reused . | . . . . . . Traps Extracted . | . . . . . . Installed . | . . . . . . Triggered . | . . . . . . Machines | -11 -10 -10 -10 -9 -8 ---------- Run | Scr Mat Min Exi Min Mat Machines Disabled 1 | . 1 . . . . Max in Single Turn 1 | . 1 . . . . Machines Sabotaged . | . . . . . . Garrisons Compromised . | . . . . . . Overloaded Fab Kills . | . . . . . . Fab Network Shutdowns . | . . . . . . Hacking | -11 -10 -10 -10 -9 -8 --------- Run | Scr Mat Min Exi Min Mat Machines Accessed 8 | . 3 1 1 1 2 Terminals 5 | . 3 . . . 2 Fabricators . | . . . . . . Repair Stations . | . . . . . . Recycling Units . | . . . . . . Scanalyzers . | . . . . . . Garrison Access . | . . . . . . Total Hacks 15 | . 8 1 1 1 4 Successful 9 | . 2 1 1 1 4 Failed 6 | . 6 . . . . Catastrophic 1 | . 1 . . . . Database Lockouts . | . . . . . . Manual 1 | . . . 1 . . Terminals 12 | . 8 . . . 4 Fabricators . | . . . . . . Repair Stations . | . . . . . . Recycling Units . | . . . . . . Scanalyzers . | . . . . . . Garrison Access . | . . . . . . Terminal Hacks 9 | . 2 1 1 1 4 Open Door 2 | . . 1 . 1 . Recycling Unit Index 1 | . . . . . 1 Alert Level 1 | . . . . . 1 Locate Traps 1 | . . . . . 1 Surveillance Status 1 | . 1 . . . . Hauler Manifests 2 | . 1 . . . 1 EX-Prototype ID Bank 1 | . . . 1 . . Fabricator Hacks . | . . . . . . Repair Station Hacks . | . . . . . . Recycling Unit Hacks . | . . . . . . Scanalyzer . | . . . . . . Garrison Access Hacks . | . . . . . . Unauthorized Hacks . | . . . . . . Terminals . | . . . . . . Fabricators . | . . . . . . Repair Stations . | . . . . . . Recycling Units . | . . . . . . Scanalyzers . | . . . . . . Garrison Access . | . . . . . . Data Cores Recovered 1 | . 1 . . . . Used . | . . . . . . Hacking Detections 4 | . 3 . . . 1 Full Trace Events 1 | . 1 . . . . Feedback Events . | . . . . . . Feedback Blocked . | . . . . . . Robot Schematics Acquired . | . . . . . . Robots Built . | . . . . . . Matter . | . . . . . . Time . | . . . . . . Total Robot Build Rating . | . . . . . . Part Schematics Acquired . | . . . . . . Parts Built . | . . . . . . Matter . | . . . . . . Time . | . . . . . . Total Part Build Rating . | . . . . . . Parts Repaired . | . . . . . . Time . | . . . . . . Parts Recycled . | . . . . . . Recycled Matter . | . . . . . . Retrieved Matter . | . . . . . . Retrieved Components . | . . . . . . Parts Scanalyzed . | . . . . . . Part Schematics Acquired . | . . . . . . Parts Damaged . | . . . . . . Bothacking | -11 -10 -10 -10 -9 -8 ------------ Run | Scr Mat Min Exi Min Mat Used RIF Installer . | . . . . . . Robots Hacked . | . . . . . . Non-combat . | . . . . . . Combat . | . . . . . . Robot Hacks Applied . | . . . . . . Relay Couplers Released . | . . . . . . Robots Rewired . | . . . . . . Allies Hacked . | . . . . . . Hacks Repelled . | . . . . . . Allies | -11 -10 -10 -10 -9 -8 -------- Run | Scr Mat Min Exi Min Mat Total Allies . | . . . . . . Largest Group . | . . . . . . Highest-Rated Group . | . . . . . . Highest-Rated Ally . | . . . . . . Total Orders . | . . . . . . Ally Attacks . | . . . . . . Total Damage . | . . . . . . Kills . | . . . . . . Allies Corrupted . | . . . . . . Allies Melted . | . . . . . . Intel | -11 -10 -10 -10 -9 -8 ------- Run | Scr Mat Min Exi Min Mat Robot Analysis Total . | . . . . . . Derelict Logs Recovered 1 | . . 1 . . . Drone Launches . | . . . . . . Drone Recoveries . | . . . . . . Exploration | -11 -10 -10 -10 -9 -8 ------------- Run | Scr Mat Min Exi Min Mat Turns Passed 2081 | 78 689 185 251 277 601 Spaces Moved 1484 | 65 440 143 207 192 437 Core 16 | 16 . . . . . Treads . | . . . . . . Legs 1468 | 49 440 143 207 192 437 Wheels . | . . . . . . Hover . | . . . . . . Flight . | . . . . . . Fastest Speed 50 | 50 120 120 120 120 120 Average Speed 120 | 103 120 120 120 120 122 Slowest Speed 150 | 120 150 120 120 120 150 Overloaded Moves . | . . . . . . Propulsion Burnouts . | . . . . . . Robots Hopped . | . . . . . . Cave-ins Triggered . | . . . . . . Exploration Rate (%) 40 | 3 73 35 61 35 37 Regions Visited 5 Branch Regions 3 Pre-discovered Areas . | . . . . . . Known Exits Taken . | . . . . . . Unknown Exits Taken 5 | 1 1 1 1 1 . Scrap Searched . | . . . . . . Spaces Dug . | . . . . . . Terrain Destroyed 14 | . . . . 3 11 Melee . | . . . . . . Projectile 14 | . . . . 3 11 AOE . | . . . . . . Terrain Rammed . | . . . . . . Walls Destroyed . | . . . . . . Machines Disabled . | . . . . . . Actions | -11 -10 -10 -10 -9 -8 --------- Run | Scr Mat Min Exi Min Mat Total 1721 | 72 542 157 210 239 501 Wait 144 | . 36 3 . 46 59 Move 1479 | 64 439 142 206 191 437 Hop . | . . . . . . Pick Up 16 | 2 8 2 1 1 2 Fast Attach 19 | 6 7 3 1 . 2 Attach 4 | . 2 1 . . 1 Detach 1 | . 1 . . . . Swap 8 | . 7 1 . . . Drop 19 | . 11 5 2 1 . Fire 31 | . 31 . . . . Melee . | . . . . . . Ram . | . . . . . . Kick . | . . . . . . Crush . | . . . . . . Escape Stasis . | . . . . . . Rewire . | . . . . . . Trap . | . . . . . . Miscellaneous . | . . . . . . Route ------- -11/Scrapyard -10/Materials (discovered 3 exits: [*Mat x2] / *Min) -10/Mines -10/Exiles -9/Mines -8/Materials History --------- Turn | Location | Event 13 | -11/Scrapyard | Discovered new exit (range 16) 79 | -11/Scrapyard | Entered Materials 119 | -10/Materials | Discovered new exit (range 16) 308 | -10/Materials | Build established: Mutant 393 | -10/Materials | Discovered new exit (range 8) 675 | -10/Materials | Discovered new exit (range 8) 768 | -10/Materials | Entered Mines 799 | -10/Mines | Met a Derelict who couldn't figure out how to use a Trap Extractor 809 | -10/Mines | Core integrity fell below 50% 869 | -10/Mines | Learned Materials stockpile data 949 | -10/Mines | Deemed a non-threat by the Exiles lab entrance 949 | -10/Mines | Discovered new exit (range 5) 953 | -10/Mines | Entered Exiles 983 | -10/Exiles | Met 8R-AWN 1004 | -10/Exiles | Met EX-HEX 1035 | -10/Exiles | Met EX-BIN 1049 | -10/Exiles | Aligned with FarCom system 1051 | -10/Exiles | Given EX-Vault access code 1078 | -10/Exiles | Opened EX-Vault 1086 | -10/Exiles | Found AWS/Thermal 1113 | -10/Exiles | Warned to stay clear of 0b10 Research branches 1149 | -10/Exiles | Met EX-DEC 1191 | -10/Exiles | Discovered new exit (range 14) 1204 | -10/Exiles | Left Exiles lab with AWS/Thermal 1204 | -10/Exiles | Entered Mines 1237 | -9/Mines | Found the Drone Emporium 1245 | -9/Mines | Found Prototype Device 1366 | -9/Mines | Assembled infested the area 1371 | -9/Mines | Assisted by a Guerilla fighting off Assembled 1470 | -9/Mines | Discovered new exit (range 9) 1481 | -9/Mines | Entered Materials 1481 | -8/Materials | Evolved 4 slots: Propulsion x2, Utility x2 2082 | -8/Materials | Self-destructed Last Messages --------------- 2x Hvy. Particle Cannon A-02 Transporter 3x Imp. Medium Laser 2x Hvy. Ion Engine >>Index(Recycling Units) Found 2 recycling units. Downloaded coordinate data. >>Alert(Check) Current Alert Level: 1-F 02059_ Destroyed Lgt. Nuclear Core. 02065_ G-47 Trooper destroyed. 02065_ R-06 Scavenger collects Visual Processing Unit. 02068_ K-01 Serf collects debris. 02069_ O-16 Technician: "IFF HANDSHAKE FAILED. SECURING TERMINAL." 02073_ K-01 Serf collects debris. 02075_ U-05 Engineer builds a Wall. 02076_ K-01 Serf collects debris. 02078_ U-05 Engineer builds a Wall. 02080_ K-01 Serf collects debris. 02081_ AWS/Thermal suddenly breaks down. Map ----- +----------------------------------------------------+ | ?????????????????????????????????????????????????? | | ?????????????????????????????????????????????????? | | ?????????????????????????????????????????????????? | | ?????????????????????????????????????????????????? | | ###########??????????????????????????????????????? | | #] #??????????????????????????????????????? | | # """ #??????????????????????????????????????? | | # "Y" #????+#????????????????????????????????? | | + #??? #????????????????????????????????? | | ##+#"+####???? ##???????????????????????????????? | | ## #??????? T???????? ???????????????????????? | | #??????? #???????#/#??????????????????????? | | #?????? #??????# k ???????!??????????????? | | %###### #??????# #?????????????????????? | | % !=%! ? #?????????????????????? | | %###########??????# #?????????????????????? | | ## % # ! ##?????# #?????????????????????? | | ?## " %#?????# #?????????????????????? | | ?#" # """ ##?????# #?????????????????????? | | ##" " """"" [ #??????# w #?????????""??????????? | | # + """"" #??????# #??????"" ""??????????? | | # # """"" #??????# #?????""" S??????????? | | " + # """ #??????# #????? """ Y???????? | | " # # #??????# #????? """ #???????? | | " # #########+#??????# #???? #???????? | | ?# ######### ###???## @ ##??? = ?????????? | | ### #=== # ##??# #######!+######??????? | | ## #=== # ##### r % ????=?? | | ## #== + T % %% T #??????????? | | [## # # %##### #??????????? | | ## # # ###?# # k #??????????? | | ## # ## ## ######### #??????????? | | ## ######## # ??# ^ #??????????? | | ## #?????# # """ !!! ?# ^ #??????????? | | #?????# + """ !!! ?# = a#??????????? | | #?????# # """ !! ?#! ^=[ #??????????? | | #?????# # ??# =^=[ #??????????? | | ## #?????# #?#######??# =g[ #??????????? | | ###############+#####???????# #??????????? | | #?# #???????# g #??????????? | | #?# """ """ #???????# #??????????? | | #?# """"""""" #???????# g #??????????? | | #?# """"" " #???????? #??????????? | | ! #?#/ ! #???????? ! #??????????? | | #?# #???????? #??????????? | | #?###############???????? #??????????? | | #???????????????????????? ^ ????????????? | | #???????????????????????? "???????????????? | | #####???????????????????????? ?????????????????? | | ?????????????????????????????????????????????????? | +----------------------------------------------------+ Best States ------------- Heat Dissipation 31 Energy Generation 14 Energy Capacity 275 Matter Stores 300 Matter Capacity 300 Sight Range 16 Terrain Scan Density 10 Armor Coverage 600 Evasion (%) 50 Targeting Accuracy 5 Item Schematics ----------------- None Robot Schematics ------------------ None Fabricated ------------ Nothing Alien Tech Used ----------------- None Achievements -------------- None Challenges ------------ None Game ------ Seed DeepDecoyDriver Manual? 0 Play Time 00:16:53 Cumulative 64.9 hours Start 2021.03.14 @ 17:17:37 End 2021.03.14 @ 17:37:24 Sessions 1 Manual Loads 0 Difficulty Rogue Special Mode None Game No. 168 Rogue 17 Adventurer 148 Explorer 3 Win Type - Total 0 Types 0/0/0/0/0/0/0/0/0 Lore% 48 Gallery% 58 Achievement% 46 Wizard Run 0 Options --------- ASCII 0 Keyboard 0 Movement Numpad Keybinds 0 Fullscreen 1 Font 18/SmallcapsGlow Map View 76x50 Tactical HUD 1 Map Filters NONE Filters NONE Steam 1 RUN: b50babd4-98e4-4228-976b-68e98e4476e9